[Event "*** MasterClass Titled Tuesday Blitz"]
[Site "Chess.com"]
[Date "2017.12.05"]
[Round "2"]
[White "gmjoey1"]
[Black "sandromareco"]
[Result "0-1"]
[WhiteElo "2485"]
[BlackElo "2616"]
[TimeControl "180+2"]
[EndTime "14:35:18 PST"]
[Termination "sandromareco won by resignation"]

1. Nc3 {[%clk 0:02:36.5]} 1... d5 {[%clk 0:02:59.6]} 2. e4 {[%clk 0:02:14.1]}
2... dxe4 {[%clk 0:03:00.2]} 3. Nxe4 {[%clk 0:02:14.2]} 3... Nf6 {[%clk
0:03:01.1]} 4. Nxf6+ {[%clk 0:02:14.7]} 4... exf6 {[%clk 0:03:02.1]} 5. d4
{[%clk 0:02:15.2]} 5... Bd6 {[%clk 0:03:03.5]} 6. Bd3 {[%clk 0:02:15.5]} 6...
O-O {[%clk 0:03:04.3]} 7. Nf3 {[%clk 0:02:16.7]} 7... Nd7 {[%clk 0:03:03.8]} 8.
c3 {[%clk 0:02:16.7]} 8... Re8+ {[%clk 0:03:04.6]} 9. Be3 {[%clk 0:02:16.5]}
9... g6 {[%clk 0:03:02.7]} 10. Qc2 {[%clk 0:02:15.4]} 10... c6 {[%clk
0:03:00.6]} 11. O-O-O {[%clk 0:02:15.7]} 11... Nf8 {[%clk 0:03:01.7]} 12. h4
{[%clk 0:02:15.9]} 12... Bg4 {[%clk 0:03:02.7]} 13. Kb1 {[%clk 0:02:13.9]} 13...
h5 {[%clk 0:03:02.9]} 14. Rde1 {[%clk 0:02:13.8]} 14... Qc7 {[%clk 0:03:02.9]}
15. Nd2 {[%clk 0:02:14]} 15... b5 {[%clk 0:03:01.7]} 16. Ne4 {[%clk 0:02:13.2]}
16... Be7 {[%clk 0:02:58.6]} 17. f3 {[%clk 0:02:13.4]} 17... Be6 {[%clk
0:02:55]} 18. g4 {[%clk 0:02:11.9]} 18... hxg4 {[%clk 0:02:55.7]} 19. fxg4
{[%clk 0:02:13.7]} 19... Bxg4 {[%clk 0:02:55.3]} 20. Rhg1 {[%clk 0:02:14.5]}
20... f5 {[%clk 0:02:53.6]} 21. Ng5 {[%clk 0:02:10.6]} 21... Bxg5 {[%clk
0:02:50.4]} 22. Bxg5 {[%clk 0:02:10.2]} 22... Rxe1+ {[%clk 0:02:50.1]} 23. Rxe1
{[%clk 0:02:12]} 23... Ne6 {[%clk 0:02:50.9]} 24. Bf6 {[%clk 0:02:12]} 24... Qg3
{[%clk 0:02:49.4]} 25. Qd2 {[%clk 0:02:08.6]} 25... f4 {[%clk 0:02:47.8]} 26.
Be5 {[%clk 0:02:03.2]} 26... Qxh4 {[%clk 0:02:43.8]} 27. Rg1 {[%clk 0:02:03.6]}
27... Bh5 {[%clk 0:02:39.6]} 28. Be4 {[%clk 0:01:58.5]} 28... Rc8 {[%clk
0:02:30.5]} 29. Ka1 {[%clk 0:01:55.9]} 29... Kf8 {[%clk 0:02:24.3]} 30. d5
{[%clk 0:01:54.4]} 30... cxd5 {[%clk 0:02:23.1]} 31. Qxd5 {[%clk 0:01:55.6]}
31... Qf2 {[%clk 0:02:17]} 32. Rh1 {[%clk 0:01:49.6]} 32... Rd8 {[%clk
0:02:06.2]} 33. Qxb5 {[%clk 0:01:44.2]} 33... Qe3 {[%clk 0:01:57.4]} 34. Qb4+
{[%clk 0:01:43.5]} 34... Kg8 {[%clk 0:01:56.7]} 35. a3 {[%clk 0:01:43.2]} 35...
f3 {[%clk 0:01:52.7]} 36. Bf6 {[%clk 0:01:43.8]} 36... f2 {[%clk 0:01:28.6]} 37.
Bb1 {[%clk 0:01:39.7]} 37... Qe1 {[%clk 0:01:26.9]} 38. Bxd8 {[%clk 0:01:09.5]}
38... Qxh1 {[%clk 0:01:24.9]} 39. Bf6 {[%clk 0:00:57.4]} 39... f1=Q {[%clk
0:01:22.7]} 40. Qb8+ {[%clk 0:00:54.2]} 40... Nf8 {[%clk 0:01:23.6]} 0-1

[Event "*** MasterClass Titled Tuesday Blitz"]
[Site "Chess.com"]
[Date "2017.12.05"]
[Round "2"]
[White "FollowMeIBeg"]
[Black "MRniceplay"]
[Result "0-1"]
[WhiteElo "1726"]
[BlackElo "2258"]
[TimeControl "180+2"]
[EndTime "14:35:18 PST"]
[Termination "MRniceplay won by checkmate"]

1. d4 {[%clk 0:03:01.9]} 1... Nf6 {[%clk 0:02:58.8]} 2. c4 {[%clk 0:03:02.9]}
2... g6 {[%clk 0:02:59.1]} 3. Nc3 {[%clk 0:03:04.3]} 3... d5 {[%clk 0:02:59.3]}
4. cxd5 {[%clk 0:03:05.1]} 4... Nxd5 {[%clk 0:03:00.8]} 5. e4 {[%clk 0:03:06.6]}
5... Nxc3 {[%clk 0:03:01.5]} 6. bxc3 {[%clk 0:03:08.5]} 6... Bg7 {[%clk
0:03:01.6]} 7. Nf3 {[%clk 0:03:07.5]} 7... c5 {[%clk 0:03:03]} 8. Be3 {[%clk
0:03:03]} 8... Qa5 {[%clk 0:03:01.9]} 9. Qc2 {[%clk 0:02:59]} 9... Nc6 {[%clk
0:02:58.8]} 10. Bd2 {[%clk 0:02:38.6]} 10... Bg4 {[%clk 0:02:51.9]} 11. c4
{[%clk 0:02:22.4]} 11... Qa3 {[%clk 0:02:40.9]} 12. Rb1 {[%clk 0:02:06.3]} 12...
Bxf3 {[%clk 0:02:35]} 13. gxf3 {[%clk 0:02:07.8]} 13... Nxd4 {[%clk 0:02:35.6]}
14. Qd1 {[%clk 0:01:59.9]} 14... Nxf3+ {[%clk 0:02:32.6]} 15. Ke2 {[%clk
0:02:00.9]} 15... O-O-O {[%clk 0:02:29.9]} 16. Bh3+ {[%clk 0:01:54.7]} 16... e6
{[%clk 0:02:29.1]} 17. Rb3 {[%clk 0:01:54.4]} 17... Nd4+ {[%clk 0:02:21.6]} 18.
Ke1 {[%clk 0:01:52.5]} 18... Qxa2 {[%clk 0:02:09.7]} 19. Rc3 {[%clk 0:01:39.5]}
19... f5 {[%clk 0:02:03.4]} 20. Kf1 {[%clk 0:00:48.5]} 20... fxe4 {[%clk
0:01:59.4]} 21. Kg2 {[%clk 0:00:35.3]} 21... Rhf8 {[%clk 0:01:36.1]} 22. Rf1
{[%clk 0:00:30.1]} 22... h5 {[%clk 0:01:19.3]} 23. Rc1 {[%clk 0:00:16.6]} 23...
Rf3 {[%clk 0:01:13.9]} 24. Kh1 {[%clk 0:00:14.9]} 24... Rxh3 {[%clk 0:01:13]}
25. f3 {[%clk 0:00:16.2]} 25... Nxf3 {[%clk 0:01:11.9]} 26. Rf2 {[%clk
0:00:16.9]} 26... e3 {[%clk 0:01:03.1]} 27. Rxf3 {[%clk 0:00:16.8]} 27... Rxd2
{[%clk 0:00:59.5]} 28. Qf1 {[%clk 0:00:13.9]} 28... Rdxh2+ {[%clk 0:00:53.6]}
29. Kg1 {[%clk 0:00:14.9]} 29... Rh1# {[%clk 0:00:54.6]} 0-1

[Event "*** MasterClass Titled Tuesday Blitz"]
[Site "Chess.com"]
[Date "2017.12.05"]
[Round "2"]
[White "Zenzo"]
[Black "Msb2"]
[Result "1-0"]
[WhiteElo "2483"]
[BlackElo "2712"]
[TimeControl "180+2"]
[EndTime "14:35:19 PST"]
[Termination "Zenzo won by checkmate"]

1. e4 {[%clk 0:02:56.3]} 1... e6 {[%clk 0:03:01.1]} 2. d4 {[%clk 0:02:57.2]}
2... d5 {[%clk 0:03:03]} 3. Nd2 {[%clk 0:02:58.6]} 3... c5 {[%clk 0:03:02.1]} 4.
dxc5 {[%clk 0:02:58.8]} 4... Nf6 {[%clk 0:02:55.7]} 5. exd5 {[%clk 0:02:53.5]}
5... Qxd5 {[%clk 0:02:57.6]} 6. Ngf3 {[%clk 0:02:52.9]} 6... Qxc5 {[%clk
0:02:57.8]} 7. Bd3 {[%clk 0:02:48.2]} 7... Nbd7 {[%clk 0:02:58.9]} 8. O-O {[%clk
0:02:48.7]} 8... Qc7 {[%clk 0:03:00.5]} 9. c4 {[%clk 0:02:43.1]} 9... Bd6 {[%clk
0:02:52.6]} 10. b3 {[%clk 0:02:43]} 10... b6 {[%clk 0:02:49.1]} 11. Bb2 {[%clk
0:02:41.6]} 11... Bb7 {[%clk 0:02:50.7]} 12. Qe2 {[%clk 0:02:40.3]} 12... O-O-O
{[%clk 0:02:25.8]} 13. Ne4 {[%clk 0:02:36.7]} 13... Be7 {[%clk 0:02:16.5]} 14.
Rfd1 {[%clk 0:02:31.6]} 14... Nxe4 {[%clk 0:02:06.8]} 15. Bxe4 {[%clk
0:02:32.3]} 15... Bf6 {[%clk 0:02:08.7]} 16. Bxb7+ {[%clk 0:02:20.4]} 16... Kxb7
{[%clk 0:02:05.8]} 17. Nd4 {[%clk 0:02:09.4]} 17... Bxd4 {[%clk 0:01:17.8]} 18.
Rxd4 {[%clk 0:02:11.3]} 18... Nf6 {[%clk 0:01:11]} 19. Rad1 {[%clk 0:02:01.4]}
19... Rxd4 {[%clk 0:01:04.5]} 20. Rxd4 {[%clk 0:02:03.3]} 20... Rd8 {[%clk
0:01:04.5]} 21. Qf3+ {[%clk 0:02:01.2]} 21... Ka6 {[%clk 0:01:02.4]} 22. b4
{[%clk 0:01:55.8]} 22... b5 {[%clk 0:00:46.4]} 23. Rxd8 {[%clk 0:01:56.3]} 23...
bxc4 {[%clk 0:00:39.8]} 24. Bxf6 {[%clk 0:01:38.6]} 24... gxf6 {[%clk
0:00:40.5]} 25. Qd1 {[%clk 0:01:25.1]} 25... Kb5 {[%clk 0:00:36.6]} 26. a3
{[%clk 0:01:15]} 26... c3 {[%clk 0:00:36.2]} 27. Qd3+ {[%clk 0:01:14.1]} 27...
Ka4 {[%clk 0:00:36]} 28. Qc2+ {[%clk 0:01:05]} 28... Kxa3 {[%clk 0:00:37]} 29.
Rd3 {[%clk 0:01:03.9]} 29... Kxb4 {[%clk 0:00:38]} 30. g3 {[%clk 0:01:01.5]}
30... a5 {[%clk 0:00:38.7]} 31. Rd4+ {[%clk 0:01:01.7]} 31... Kb5 {[%clk
0:00:37.7]} 32. Qb3+ {[%clk 0:01:00.6]} 32... Ka6 {[%clk 0:00:37.3]} 33. Rc4
{[%clk 0:01:01.6]} 33... Qb6 {[%clk 0:00:36.9]} 34. Qxc3 {[%clk 0:01:01.3]}
34... Qb1+ {[%clk 0:00:37.5]} 35. Kg2 {[%clk 0:01:02.3]} 35... Qb7+ {[%clk
0:00:39.4]} 36. Rc6+ {[%clk 0:01:01.2]} 36... Kb5 {[%clk 0:00:38.7]} 37. Qc4#
{[%clk 0:01:02.1]} 1-0

[Event "*** MasterClass Titled Tuesday Blitz"]
[Site "Chess.com"]
[Date "2017.12.05"]
[Round "2"]
[White "Angry_Serb"]
[Black "josiwales"]
[Result "0-1"]
[WhiteElo "2356"]
[BlackElo "2359"]
[TimeControl "180+2"]
[EndTime "14:35:35 PST"]
[Termination "josiwales won by checkmate"]

1. e4 {[%clk 0:02:34.2]} 1... c5 {[%clk 0:03:00]} 2. Nf3 {[%clk 0:02:34]} 2...
Nc6 {[%clk 0:03:00.4]} 3. d4 {[%clk 0:02:34.4]} 3... cxd4 {[%clk 0:03:02.3]} 4.
Nxd4 {[%clk 0:02:35.8]} 4... Nf6 {[%clk 0:03:03.8]} 5. Nc3 {[%clk 0:02:35.6]}
5... e5 {[%clk 0:03:04.8]} 6. Ndb5 {[%clk 0:02:36.8]} 6... d6 {[%clk 0:03:06.1]}
7. Bg5 {[%clk 0:02:36.6]} 7... a6 {[%clk 0:03:07.4]} 8. Na3 {[%clk 0:02:38.2]}
8... b5 {[%clk 0:03:08.6]} 9. Nd5 {[%clk 0:02:39.4]} 9... Be7 {[%clk 0:03:09.8]}
10. Bxf6 {[%clk 0:02:41.1]} 10... Bxf6 {[%clk 0:03:11.7]} 11. c4 {[%clk
0:02:42.7]} 11... Nd4 {[%clk 0:03:12.2]} 12. Bd3 {[%clk 0:02:38]} 12... O-O
{[%clk 0:02:35]} 13. O-O {[%clk 0:02:37.8]} 13... Be6 {[%clk 0:02:26]} 14. cxb5
{[%clk 0:02:35.3]} 14... Bxd5 {[%clk 0:02:24.6]} 15. exd5 {[%clk 0:02:36]} 15...
axb5 {[%clk 0:02:24.5]} 16. Nxb5 {[%clk 0:02:34.3]} 16... Qb6 {[%clk 0:02:22.8]}
17. a4 {[%clk 0:02:32.6]} 17... Rfc8 {[%clk 0:02:20.3]} 18. Qg4 {[%clk
0:02:21.4]} 18... Nb3 {[%clk 0:02:11.6]} 19. Ra3 {[%clk 0:02:13.2]} 19... Nc5
{[%clk 0:02:12.6]} 20. Bf5 {[%clk 0:02:13.5]} 20... Rd8 {[%clk 0:02:08.1]} 21.
Rfa1 {[%clk 0:02:05.1]} 21... g6 {[%clk 0:02:04.3]} 22. Bc2 {[%clk 0:02:00.3]}
22... Rdc8 {[%clk 0:02:01.6]} 23. b4 {[%clk 0:01:49.8]} 23... Na6 {[%clk
0:01:52.5]} 24. Bf5 {[%clk 0:01:37]} 24... h5 {[%clk 0:01:43.4]} 25. Qg3 {[%clk
0:01:29.8]} 25... Rc4 {[%clk 0:01:42.9]} 26. Bxg6 {[%clk 0:01:01.3]} 26... Rg4
{[%clk 0:01:42.9]} 27. Qf3 {[%clk 0:01:01.4]} 27... Rxg6 {[%clk 0:01:42.9]} 28.
Rc3 {[%clk 0:00:53.1]} 28... Nxb4 {[%clk 0:01:41.8]} 29. h3 {[%clk 0:00:49.1]}
29... e4 {[%clk 0:01:40.3]} 30. Qxe4 {[%clk 0:00:33.7]} 30... Bxc3 {[%clk
0:01:40.3]} 31. Nxc3 {[%clk 0:00:35.6]} 31... Qc5 {[%clk 0:01:31.9]} 32. Ra3
{[%clk 0:00:28.5]} 32... Kh8 {[%clk 0:01:14.5]} 33. Rb3 {[%clk 0:00:27.2]} 33...
Rag8 {[%clk 0:01:10.4]} 34. g3 {[%clk 0:00:22.4]} 34... Rxg3+ {[%clk 0:01:11]}
35. Kf1 {[%clk 0:00:21.5]} 35... Rxc3 {[%clk 0:01:05.9]} 36. Rxb4 {[%clk
0:00:20.3]} 36... Rc1+ {[%clk 0:01:03.7]} 37. Ke2 {[%clk 0:00:21.8]} 37... Rc2+
{[%clk 0:01:03.4]} 38. Kf3 {[%clk 0:00:21.5]} 38... Qxf2# {[%clk 0:01:04]} 0-1

[Event "*** MasterClass Titled Tuesday Blitz"]
[Site "Chess.com"]
[Date "2017.12.05"]
[Round "2"]
[White "Markov_Mikhail"]
[Black "walkingcreep"]
[Result "1-0"]
[WhiteElo "2611"]
[BlackElo "2417"]
[TimeControl "180+2"]
[EndTime "14:35:37 PST"]
[Termination "Markov_Mikhail won by resignation"]

1. c4 {[%clk 0:02:57.4]} 1... Nf6 {[%clk 0:03:00.7]} 2. Nf3 {[%clk 0:02:58.5]}
2... g6 {[%clk 0:03:02]} 3. g3 {[%clk 0:02:58.6]} 3... Bg7 {[%clk 0:03:03.7]} 4.
Bg2 {[%clk 0:03:00.2]} 4... O-O {[%clk 0:03:05.1]} 5. O-O {[%clk 0:03:01.8]}
5... d6 {[%clk 0:03:06.6]} 6. Nc3 {[%clk 0:03:02.7]} 6... Nc6 {[%clk 0:03:06.2]}
7. d4 {[%clk 0:03:03.8]} 7... Bf5 {[%clk 0:03:07.3]} 8. d5 {[%clk 0:03:02]} 8...
Na5 {[%clk 0:03:08.3]} 9. Nd4 {[%clk 0:03:02.9]} 9... Bd7 {[%clk 0:03:08.7]} 10.
b3 {[%clk 0:03:04.4]} 10... c5 {[%clk 0:03:09.8]} 11. dxc6 {[%clk 0:03:05.5]}
11... Nxc6 {[%clk 0:03:10.9]} 12. Bb2 {[%clk 0:03:06.8]} 12... Qa5 {[%clk
0:03:10.7]} 13. h3 {[%clk 0:02:58.7]} 13... Rfc8 {[%clk 0:03:10.5]} 14. e3
{[%clk 0:02:55.4]} 14... a6 {[%clk 0:03:11.4]} 15. Qd2 {[%clk 0:02:55.5]} 15...
Qd8 {[%clk 0:03:09.6]} 16. Rfd1 {[%clk 0:02:52.4]} 16... Rab8 {[%clk 0:03:02.5]}
17. Qe2 {[%clk 0:02:47.8]} 17... Nxd4 {[%clk 0:02:55.5]} 18. Rxd4 {[%clk
0:02:45.9]} 18... b5 {[%clk 0:02:55.5]} 19. cxb5 {[%clk 0:02:36.3]} 19... axb5
{[%clk 0:02:54.7]} 20. Rd2 {[%clk 0:02:37.8]} 20... Qa5 {[%clk 0:02:42.8]} 21.
Nd5 {[%clk 0:02:14.7]} 21... Nxd5 {[%clk 0:02:38.8]} 22. Bxg7 {[%clk 0:02:11.8]}
22... Kxg7 {[%clk 0:02:33.9]} 23. Rxd5 {[%clk 0:02:12.3]} 23... Qc3 {[%clk
0:02:18.5]} 24. Rad1 {[%clk 0:02:12.3]} 24... b4 {[%clk 0:02:16.6]} 25. R5d4
{[%clk 0:02:11.7]} 25... Bf5 {[%clk 0:02:07.7]} 26. R1d2 {[%clk 0:02:01.5]}
26... Rc5 {[%clk 0:01:55.2]} 27. Kh2 {[%clk 0:01:57.3]} 27... h5 {[%clk
0:01:53.3]} 28. Qa6 {[%clk 0:01:52.1]} 28... Qc1 {[%clk 0:01:28.2]} 29. Qa7
{[%clk 0:01:43.3]} 29... Re8 {[%clk 0:01:29]} 30. Qa4 {[%clk 0:01:39.9]} 30...
Rb8 {[%clk 0:01:24.7]} 31. Qa7 {[%clk 0:01:13]} 31... Re8 {[%clk 0:01:24.5]} 32.
Qb7 {[%clk 0:01:13.4]} 32... Rc2 {[%clk 0:01:00.3]} 33. Qxb4 {[%clk 0:01:14.2]}
33... Rec8 {[%clk 0:01:00.9]} 34. a4 {[%clk 0:01:08.4]} 34... R2c3 {[%clk
0:00:58.6]} 35. a5 {[%clk 0:01:00.5]} 35... Qb1 {[%clk 0:00:55.1]} 36. a6 {[%clk
0:00:53.4]} 36... Rxb3 {[%clk 0:00:54.1]} 37. Qa4 {[%clk 0:00:48.7]} 37... Qc1
{[%clk 0:00:48.7]} 38. Qxb3 {[%clk 0:00:48.1]} 1-0

[Event "*** MasterClass Titled Tuesday Blitz"]
[Site "Chess.com"]
[Date "2017.12.05"]
[Round "2"]
[White "ChessicallyInclined"]
[Black "AbdAlAgathos"]
[Result "1-0"]
[WhiteElo "2213"]
[BlackElo "2301"]
[TimeControl "180+2"]
[EndTime "14:35:44 PST"]
[Termination "ChessicallyInclined won by resignation"]

1. d4 {[%clk 0:02:30.3]} 1... Nf6 {[%clk 0:02:07]} 2. c4 {[%clk 0:02:30.8]} 2...
g6 {[%clk 0:02:07.2]} 3. Nc3 {[%clk 0:02:31.6]} 3... d5 {[%clk 0:02:07.9]} 4.
Nf3 {[%clk 0:02:31.3]} 4... Bg7 {[%clk 0:02:07.8]} 5. Qb3 {[%clk 0:02:28.6]}
5... dxc4 {[%clk 0:02:07.1]} 6. Qxc4 {[%clk 0:02:30.2]} 6... O-O {[%clk
0:02:08.6]} 7. e4 {[%clk 0:02:30.8]} 7... Nc6 {[%clk 0:02:08.1]} 8. Be2 {[%clk
0:02:28.5]} 8... Bg4 {[%clk 0:02:06]} 9. Be3 {[%clk 0:02:27.2]} 9... Bxf3 {[%clk
0:02:04.8]} 10. gxf3 {[%clk 0:02:22.5]} 10... e5 {[%clk 0:02:06.4]} 11. dxe5
{[%clk 0:02:22.1]} 11... Nxe5 {[%clk 0:02:08.3]} 12. Qb5 {[%clk 0:02:19.5]}
12... Qe7 {[%clk 0:01:48.5]} 13. O-O-O {[%clk 0:01:59.8]} 13... c6 {[%clk
0:01:46.7]} 14. Qc5 {[%clk 0:01:50.7]} 14... Qxc5 {[%clk 0:01:41.6]} 15. Bxc5
{[%clk 0:01:51.1]} 15... Rfe8 {[%clk 0:01:38.6]} 16. Be3 {[%clk 0:01:50]} 16...
b5 {[%clk 0:01:33.4]} 17. b4 {[%clk 0:01:41.4]} 17... a5 {[%clk 0:01:33.7]} 18.
a3 {[%clk 0:01:42]} 18... axb4 {[%clk 0:01:34.3]} 19. axb4 {[%clk 0:01:43.9]}
19... Ra3 {[%clk 0:01:26.8]} 20. Kb2 {[%clk 0:01:43.9]} 20... Rea8 {[%clk
0:01:26.6]} 21. Ra1 {[%clk 0:01:40]} 21... Rxa1 {[%clk 0:01:25.5]} 22. Rxa1
{[%clk 0:01:40.3]} 22... Rxa1 {[%clk 0:01:27.4]} 23. Kxa1 {[%clk 0:01:41.2]}
23... Ne8 {[%clk 0:01:11]} 24. Bd4 {[%clk 0:01:35.2]} 24... Nd6 {[%clk
0:01:06.9]} 25. f4 {[%clk 0:01:31.8]} 25... Nd7 {[%clk 0:00:50.5]} 26. Bxg7
{[%clk 0:01:31.9]} 26... Kxg7 {[%clk 0:00:52.4]} 27. Kb2 {[%clk 0:01:24.7]}
27... Nb6 {[%clk 0:00:53.2]} 28. Kc2 {[%clk 0:01:19.5]} 28... Ndc4 {[%clk
0:00:47.5]} 29. e5 {[%clk 0:01:12.6]} 29... f6 {[%clk 0:00:23.1]} 30. exf6+
{[%clk 0:01:07.6]} 30... Kxf6 {[%clk 0:00:25]} 31. Bf3 {[%clk 0:01:07.8]} 31...
Nd6 {[%clk 0:00:20.2]} 32. Bxc6 {[%clk 0:01:06.9]} 32... Nf5 {[%clk 0:00:22.1]}
33. Nxb5 {[%clk 0:01:03.8]} 33... Nc4 {[%clk 0:00:22.1]} 34. Kc3 {[%clk
0:01:00.7]} 34... Nb6 {[%clk 0:00:22]} 35. Nd4 {[%clk 0:01:00.2]} 35... Ne7
{[%clk 0:00:21.6]} 36. b5 {[%clk 0:00:59.3]} 36... Ned5+ {[%clk 0:00:20.7]} 37.
Bxd5 {[%clk 0:00:57.9]} 37... Nxd5+ {[%clk 0:00:22.6]} 38. Kc4 {[%clk
0:00:59.2]} 38... Nxf4 {[%clk 0:00:24.5]} 39. b6 {[%clk 0:00:59.9]} 1-0

[Event "*** MasterClass Titled Tuesday Blitz"]
[Site "Chess.com"]
[Date "2017.12.05"]
[Round "2"]
[White "Goala"]
[Black "hectorfiori"]
[Result "1-0"]
[WhiteElo "2320"]
[BlackElo "2191"]
[TimeControl "180+2"]
[EndTime "14:35:47 PST"]
[Termination "Goala won by resignation"]

1. d4 {[%clk 0:03:01.9]} 1... Nf6 {[%clk 0:03:00]} 2. c4 {[%clk 0:03:02.1]} 2...
e6 {[%clk 0:02:58]} 3. Nf3 {[%clk 0:03:02.3]} 3... c5 {[%clk 0:02:53.5]} 4. d5
{[%clk 0:03:02.7]} 4... exd5 {[%clk 0:02:55.4]} 5. cxd5 {[%clk 0:03:04]} 5... d6
{[%clk 0:02:56.7]} 6. Nc3 {[%clk 0:03:05.5]} 6... g6 {[%clk 0:02:53.1]} 7. h3
{[%clk 0:03:06.6]} 7... Bg7 {[%clk 0:02:51.4]} 8. e4 {[%clk 0:03:07.8]} 8... O-O
{[%clk 0:02:45.3]} 9. Bd3 {[%clk 0:03:09.2]} 9... b5 {[%clk 0:02:38.8]} 10. Nxb5
{[%clk 0:03:09]} 10... Nxe4 {[%clk 0:02:36.5]} 11. O-O {[%clk 0:03:10.5]} 11...
a6 {[%clk 0:02:30.3]} 12. Na3 {[%clk 0:03:10.3]} 12... Nf6 {[%clk 0:02:26.7]}
13. Nc4 {[%clk 0:03:00.6]} 13... Qc7 {[%clk 0:02:21.6]} 14. Bf4 {[%clk 0:02:55]}
14... Ne8 {[%clk 0:02:19.6]} 15. Ng5 {[%clk 0:02:30.9]} 15... Nd7 {[%clk
0:01:54.1]} 16. Ne4 {[%clk 0:02:20.2]} 16... Nb6 {[%clk 0:01:52.3]} 17. Ncxd6
{[%clk 0:01:59.8]} 17... f5 {[%clk 0:01:29.9]} 18. Bh2 {[%clk 0:01:27.2]} 18...
f4 {[%clk 0:00:59.6]} 19. Nxe8 {[%clk 0:01:23]} 19... Rxe8 {[%clk 0:01:00.7]}
20. Rc1 {[%clk 0:01:17.5]} 20... Bd4 {[%clk 0:00:57.5]} 21. b4 {[%clk
0:01:03.5]} 21... Bf5 {[%clk 0:00:27.8]} 22. Nxc5 {[%clk 0:00:57.7]} 22... Bxc5
{[%clk 0:00:22.1]} 23. bxc5 {[%clk 0:00:56.1]} 23... Bxd3 {[%clk 0:00:14.8]} 24.
cxb6 {[%clk 0:00:43.8]} 24... Qxb6 {[%clk 0:00:16.5]} 25. Qxd3 {[%clk 0:00:44]}
25... Rad8 {[%clk 0:00:16.8]} 26. Bxf4 {[%clk 0:00:42.1]} 26... Qb4 {[%clk
0:00:17]} 27. Bg3 {[%clk 0:00:40.2]} 27... Rd7 {[%clk 0:00:12.5]} 28. d6 {[%clk
0:00:40.7]} 28... Red8 {[%clk 0:00:13.3]} 29. Rfd1 {[%clk 0:00:40.5]} 29... Qa5
{[%clk 0:00:11.9]} 30. Qd5+ {[%clk 0:00:40.7]} 30... Qxd5 {[%clk 0:00:12.5]} 31.
Rxd5 {[%clk 0:00:42.6]} 31... Kf7 {[%clk 0:00:13.9]} 32. Rc6 {[%clk 0:00:42.5]}
32... Ke6 {[%clk 0:00:14.6]} 33. Ra5 {[%clk 0:00:43.1]} 33... h5 {[%clk
0:00:13.9]} 34. Rcxa6 {[%clk 0:00:43]} 34... g5 {[%clk 0:00:15.2]} 35. Rxg5
{[%clk 0:00:43.3]} 1-0

[Event "*** MasterClass Titled Tuesday Blitz"]
[Site "Chess.com"]
[Date "2017.12.05"]
[Round "2"]
[White "champ2005"]
[Black "Rsnr"]
[Result "0-1"]
[WhiteElo "2427"]
[BlackElo "2630"]
[TimeControl "180+2"]
[EndTime "14:35:52 PST"]
[Termination "Rsnr won by resignation"]

1. e4 {[%clk 0:03:00.8]} 1... c6 {[%clk 0:03:01.3]} 2. Nc3 {[%clk 0:03:00]} 2...
d5 {[%clk 0:03:03.2]} 3. Qf3 {[%clk 0:03:01.3]} 3... d4 {[%clk 0:02:37]} 4. Nce2
{[%clk 0:02:55]} 4... c5 {[%clk 0:02:33.8]} 5. d3 {[%clk 0:02:53.6]} 5... Nc6
{[%clk 0:02:35]} 6. Qg3 {[%clk 0:02:54.8]} 6... Nf6 {[%clk 0:02:32.2]} 7. a3
{[%clk 0:02:50.7]} 7... e5 {[%clk 0:02:32.3]} 8. f4 {[%clk 0:02:45.7]} 8... exf4
{[%clk 0:02:28]} 9. Nxf4 {[%clk 0:02:45.5]} 9... h6 {[%clk 0:02:27.7]} 10. Nf3
{[%clk 0:02:45.7]} 10... g5 {[%clk 0:02:22.8]} 11. Ne2 {[%clk 0:02:31.7]} 11...
Ng4 {[%clk 0:02:22.9]} 12. e5 {[%clk 0:02:00.6]} 12... Ngxe5 {[%clk 0:02:14.8]}
13. Nxe5 {[%clk 0:02:00]} 13... Bd6 {[%clk 0:02:16.3]} 14. Bd2 {[%clk
0:01:55.6]} 14... Nxe5 {[%clk 0:02:11.2]} 15. Qf2 {[%clk 0:01:55.8]} 15... Ng4
{[%clk 0:02:01.9]} 16. Qg1 {[%clk 0:01:56.7]} 16... Qe7 {[%clk 0:01:59.3]} 17.
O-O-O {[%clk 0:01:55.1]} 17... Be6 {[%clk 0:02:00.5]} 18. h3 {[%clk 0:01:52.7]}
18... Ne5 {[%clk 0:02:00.3]} 19. Qf2 {[%clk 0:01:32.2]} 19... f5 {[%clk
0:02:01]} 20. Ng3 {[%clk 0:01:31.9]} 20... Qf7 {[%clk 0:02:02.4]} 21. Be2 {[%clk
0:01:32.5]} 21... O-O-O {[%clk 0:02:03.7]} 22. Bh5 {[%clk 0:01:27]} 22... Qd7
{[%clk 0:02:03.4]} 23. Rhf1 {[%clk 0:01:25.4]} 23... Rhf8 {[%clk 0:02:04.5]} 24.
Be2 {[%clk 0:01:15.8]} 24... Kb8 {[%clk 0:02:05.5]} 25. h4 {[%clk 0:01:02.8]}
25... Be7 {[%clk 0:01:58.7]} 26. hxg5 {[%clk 0:01:02.4]} 26... hxg5 {[%clk
0:02:00.2]} 27. Rh1 {[%clk 0:01:00.8]} 27... Qd5 {[%clk 0:01:51.9]} 28. b3
{[%clk 0:01:01.9]} 28... f4 {[%clk 0:01:44.6]} 29. Ne4 {[%clk 0:00:57.4]} 29...
c4 {[%clk 0:01:45.7]} 30. bxc4 {[%clk 0:00:38.9]} 30... Bxa3+ {[%clk 0:01:46.4]}
31. Kb1 {[%clk 0:00:40.1]} 31... Qc6 {[%clk 0:01:48.3]} 32. Bc1 {[%clk
0:00:30.8]} 32... Qb6+ {[%clk 0:01:11]} 33. Ka2 {[%clk 0:00:21.5]} 33... Bxc1
{[%clk 0:01:11.9]} 34. Rxc1 {[%clk 0:00:23.4]} 34... Qa5+ {[%clk 0:01:06.1]} 35.
Kb2 {[%clk 0:00:23.8]} 35... Qb4+ {[%clk 0:01:04.2]} 36. Ka2 {[%clk 0:00:25]}
36... Nxc4 {[%clk 0:01:02.7]} 37. dxc4 {[%clk 0:00:25.1]} 37... Rf5 {[%clk
0:01:04.3]} 0-1